[Event "DVM U20 2019"]
[Site "Braunschweig"]
[Date "2019.12.29"]
[Round "5"]
[White "Genov, Valentin"]
[Black "Kroschel, Anton"]
[Result "1-0"]
[ECO "A65"]
[WhiteElo "1829"]
[BlackElo "1756"]
[Annotator "NA"]
[PlyCount "67"]
[EventDate "2019.12.27"]
[EventType "team-tourn"]
[EventRounds "7"]
[EventCountry "GER"]
[SourceTitle "playchess.com"]
[Source "ChessBase"]
[SourceQuality "1"]
[WhiteTeam "Hamburger SK"]
[BlackTeam "Lübecker SV"]
[TimeControl "40/5400+30:1800+30"]

1. d4 {[%emt 0:00:00]} Nf6 {[%emt 0:00:00]} 2. c4 {[%emt 0:00:00]} e6 {[%emt 0:00:00]} 3. Nc3 {[%emt 0:00:00]} c5 {[%emt 0:00:00]} 4. d5 {[%emt 0:00:00]} exd5 {[%emt 0:00:00]} 5. cxd5 {[%emt 0:00:00]} d6 {[%emt 0:00:00]} 6. e4 {[%emt 0:00:00] unterminated} Be7 {[%emt 0:00:42] unterminated} 7. f3 {[%emt 0:02:25] unterminated} O-O {[%emt 0:00:36] unterminated} 8. Be3 $11 {[%emt 0:03:17]} Na6 {[%emt 0:01:28]} 9. Qd2 {[%emt 0:05:17]} Bd7 {[%emt 0:02:37]} 10. Rb1 {[%emt 0:29:44]} Re8 {[%emt 0:07:24]} 11. a3 {[%emt 0:12:00]} Qa5 {[%emt 0:17:22]} 12. Nb5 {[%emt 0:11:48]} Qxd2+ {[%emt 0:05:33]} 13. Kxd2 {[%emt 0:03:07]} Rec8 {[%emt 0:04:56]} 14. Bf4 {[%emt 0:07:50]} Bxb5 {[%emt 0:03:03]} 15. Bxb5 {[%emt 0:00:06]} Nc7 {[%emt 0:00:12]} 16. Bd3 {[%emt 0:00:24]} b5 {[%emt 0:02:01]} 17. b3 {[%emt 0:02:47]} h6 {[%emt 0:05:53]} 18. Ne2 {[%emt 0:03:39]} a6 {[%emt 0:02:42]} 19. Ng3 {[%emt 0:02:17]} Bf8 {[%emt 0:04:09]} 20. Nf5 {[%emt 0:00:47]} Nce8 {[%emt 0:01:22]} 21. Rhc1 {[%emt 0:00:56]} h5 {[%emt 0:16:33]} 22. Ke2 {[%emt 0:08:21]} Rab8 {[%emt 0:02:36]} 23. a4 {[%emt 0:01:37]} c4 {[%emt 0:04:28]} 24. bxc4 {[%emt 0:00:07]} bxa4 {[%emt 0:00:33]} 25. Rxb8 {[%emt 0:01:47]} Rxb8 {[%emt 0:00:01]} 26. Rb1 {[%emt 0:00:10]} a3 {[%emt 0:01:15]} 27. Rxb8 {[%emt 0:00:39]} a2 {[%emt 0:00:35]} 28. Rb1 {[%emt 0:00:02]} axb1=Q {[%emt 0:00:27]} 29. Bxb1 {[%emt 0:00:01]} g6 {[%emt 0:02:10]} 30. Nd4 {[%emt 0:00:30]} Nd7 {[%emt 0:01:37]} 31. Nc6 {[%emt 0:00:38]} f6 {[%emt 0:01:39]} 32. Kd2 {[%emt 0:02:54]} g5 {[%emt 0:01:52]} 33. Be3 {[%emt 0:00:37]} Nc7 {[%emt 0:04:44]} 34. Kc3 {[%emt 0:00:49] normal} 1-0

[Event "DVM U20 2019"]
[Site "Braunschweig"]
[Date "2019.12.29"]
[Round "5"]
[White "Hamkar, Mehran"]
[Black "Brockmeyer, Tobias"]
[Result "1/2-1/2"]
[ECO "C02"]
[WhiteElo "1814"]
[BlackElo "1902"]
[Annotator "NA"]
[PlyCount "42"]
[EventDate "2019.12.27"]
[EventType "team-tourn"]
[EventRounds "7"]
[EventCountry "GER"]
[SourceTitle "playchess.com"]
[Source "ChessBase"]
[SourceQuality "1"]
[WhiteTeam "SF Augsburg"]
[BlackTeam "SK Lehrte 1919"]
[TimeControl "40/5400+30:1800+30"]

1. e4 {[%emt 0:00:00]} e6 {[%emt 0:00:00]} 2. d4 {[%emt 0:00:00]} d5 {[%emt 0:00:00]} 3. e5 {[%emt 0:00:00]} c5 {[%emt 0:00:00]} 4. c3 {[%emt 0:00:00]} Nc6 {[%emt 0:00:00]} 5. Nf3 {[%emt 0:00:00]} Bd7 {[%emt 0:00:00]} 6. Bd3 {[%emt 0:00:09]} cxd4 {[%emt 0:00:10]} 7. cxd4 {[%emt 0:00:10]} Qb6 {[%emt 0:00:04]} 8. O-O {[%emt 0:00:09]} Nxd4 {[%emt 0:00:05] unterminated} 9. Nxd4 {[%emt 0:00:09]} Qxd4 $15 {[%emt 0:00:05]} 10. Nc3 {[%emt 0:00:07]} a6 {[%emt 0:00:04]} 11. Qe2 {[%emt 0:00:14]} Rc8 {[%emt 0:00:06]} 12. Kh1 {[%emt 0:02:14]} Bc5 {[%emt 0:00:14]} 13. f4 {[%emt 0:14:55]} Ne7 {[%emt 0:00:30]} 14. Bd2 O-O 15. Rf3 {[%emt 0:01:00]} f5 {[%emt 0:16:39]} 16. a3 {[%emt 0:39:19]} Bb5 {[%emt 0:06:35]} 17. Nxb5 {[%emt 0:07:52]} axb5 {[%emt 0:01:30]} 18. Be3 {[%emt 0:02:04]} Qa4 {[%emt 0:00:11]} 19. Bxb5 {[%emt 0:01:00]} Qe4 {[%emt 0:04:11] normal} 20. Bd3 {normal} Qa4 {[%emt 0:00:12] normal} 21. Bb5 {[%emt 0:01:18]} Qe4 1/2-1/2

[Event "DVM U20 2019"]
[Site "Braunschweig"]
[Date "2019.12.29"]
[Round "5"]
[White "Roos, Elias"]
[Black "Gallas, Noel"]
[Result "0-1"]
[ECO "E32"]
[WhiteElo "1812"]
[BlackElo "1785"]
[Annotator "NA"]
[PlyCount "34"]
[EventDate "2019.12.27"]
[EventType "team-tourn"]
[EventRounds "7"]
[EventCountry "GER"]
[SourceTitle "playchess.com"]
[Source "ChessBase"]
[SourceQuality "1"]
[WhiteTeam "SG Trier"]
[BlackTeam "SF Essen-Katernberg"]
[TimeControl "40/5400+30:1800+30"]

1. d4 {[%emt 0:00:00]} Nf6 {[%emt 0:00:07]} 2. c4 {[%emt 0:00:00]} e6 {[%emt 0:00:05]} 3. Nc3 {[%emt 0:00:00]} Bb4 {[%emt 0:00:07]} 4. Qc2 {[%emt 0:00:00]} O-O {[%emt 0:00:17]} 5. a3 {[%emt 0:00:00]} Bxc3+ {[%emt 0:00:44]} 6. Qxc3 {[%emt 0:00:00]} b5 {[%emt 0:00:16]} 7. cxb5 {[%emt 0:02:55]} c6 {[%emt 0:00:36]} 8. bxc6 {[%emt 0:07:56]} Nxc6 {[%emt 0:00:34]} 9. Nf3 {[%emt 0:01:20]} Ba6 {[%emt 0:01:22]} 10. g3 {[%emt 0:03:49]} Rc8 {[%emt 0:09:52]} 11. Bd2 {[%emt 0:18:23]} Ne4 {[%emt 0:10:15]} 12. Qe3 {[%emt 0:01:27]} Nxd2 {[%emt 0:03:16]} 13. Qxd2 {[%emt 0:02:04]} Na5 {[%emt 0:02:25]} 14. Rd1 {[%emt 0:04:42]} Nc4 {[%emt 0:36:06]} 15. Qc3 {[%emt 0:09:13]} Qb6 {[%emt 0:02:32]} 16. b4 {[%emt 0:05:04]} Nd6 {[%emt 0:03:43]} 17. Qe3 {[%emt 0:14:54]} Nb5 {[%emt 0:07:45] normal} 0-1

[Event "DVM U20 2019"]
[Site "Braunschweig"]
[Date "2019.12.29"]
[Round "5"]
[White "Mundt, Alexandra"]
[Black "Fuhrmann, Aeke"]
[Result "1/2-1/2"]
[ECO "B72"]
[WhiteElo "1775"]
[BlackElo "1879"]
[Annotator "NA"]
[PlyCount "88"]
[EventDate "2019.12.27"]
[EventType "team-tourn"]
[EventRounds "7"]
[EventCountry "GER"]
[SourceTitle "playchess.com"]
[Source "ChessBase"]
[SourceQuality "1"]
[WhiteTeam "Lübecker SV"]
[BlackTeam "Hamburger SK"]
[TimeControl "40/5400+30:1800+30"]

1. e4 {[%emt 0:00:00]} c5 {[%emt 0:00:00]} 2. Nf3 {[%emt 0:00:00]} d6 {[%emt 0:00:00]} 3. d4 {[%emt 0:00:00]} cxd4 {[%emt 0:00:00]} 4. Nxd4 {[%emt 0:00:00]} Nf6 {[%emt 0:00:00]} 5. Nc3 {[%emt 0:00:22]} g6 {[%emt 0:00:01] unterminated} 6. Be2 {[%emt 0:02:54]} Bg7 {[%emt 0:00:07] unterminated} 7. Be3 {[%emt 0:01:17]} O-O {[%emt 0:00:28] unterminated} 8. Qd2 {[%emt 0:06:37]} Nc6 {[%emt 0:00:29] unterminated} 9. Nb3 {[%emt 0:02:16] unterminated} Ng4 {[%emt 0:01:54] unterminated} 10. Bg5 {[%emt 0:09:03] unterminated} Be6 {[%emt 0:07:35] unterminated} 11. h3 $11 {[%emt 0:05:34]} Nge5 {[%emt 0:05:43]} 12. O-O-O {[%emt 0:06:57]} Bxb3 {[%emt 0:07:42]} 13. cxb3 {[%emt 0:02:51]} Qa5 {[%emt 0:07:02]} 14. Bh6 {[%emt 0:08:55]} Bxh6 {[%emt 0:03:27]} 15. Qxh6 {[%emt 0:00:12]} Rac8 {[%emt 0:02:30]} 16. Qd2 {[%emt 0:05:18]} Nd7 {[%emt 0:13:34]} 17. Kb1 {[%emt 0:05:29]} a6 {[%emt 0:05:51]} 18. h4 {[%emt 0:03:46]} Nf6 {[%emt 0:03:11]} 19. Qg5 {[%emt 0:09:29]} Qxg5 {[%emt 0:16:05]} 20. hxg5 {[%emt 0:00:06]} Nd7 {[%emt 0:00:23]} 21. Rh6 {[%emt 0:03:57]} Kg7 {[%emt 0:00:22]} 22. Rdh1 {[%emt 0:09:37]} Rh8 {[%emt 0:00:08]} 23. f4 {[%emt 0:01:05]} Nc5 {[%emt 0:02:46]} 24. Bg4 {[%emt 0:04:58]} Rcd8 {[%emt 0:01:30]} 25. f5 {[%emt 0:03:33]} b5 {[%emt 0:01:10]} 26. Bf3 {[%emt 0:02:11]} f6 {[%emt 0:06:03]} 27. gxf6+ {[%emt 0:02:54]} exf6 {[%emt 0:00:05]} 28. Nd5 {[%emt 0:00:57]} Nd7 {[%emt 0:01:16]} 29. fxg6 {[%emt 0:01:43]} hxg6 {[%emt 0:00:19]} 30. Rxh8 {[%emt 0:00:01]} Rxh8 {[%emt 0:00:10]} 31. Rxh8 {[%emt 0:00:01]} Kxh8 {[%emt 0:00:21]} 32. Nc7 {[%emt 0:00:10]} Nd4 {[%emt 0:02:26]} 33. Nxa6 {[%emt 0:00:09]} Nxf3 {[%emt 0:00:07]} 34. gxf3 {[%emt 0:00:01]} Ne5 {[%emt 0:00:12]} 35. Nb4 {[%emt 0:01:46]} Nxf3 {[%emt 0:00:10]} 36. a4 {[%emt 0:00:23]} Nd2+ {[%emt 0:00:16]} 37. Kc2 {[%emt 0:00:35]} Nxe4 {[%emt 0:00:03]} 38. a5 {[%emt 0:00:43]} Nc5 {[%emt 0:00:27]} 39. Nd5 {[%emt 0:00:24]} Kg7 {[%emt 0:02:03]} 40. Kc3 {[%emt 0:03:06]} Na6 {[%emt 0:01:16]} 41. Nb4 {[%emt 0:09:35]} Nc7 {[%emt 0:00:31]} 42. a6 {[%emt 0:09:10]} Kf7 {[%emt 0:02:13]} 43. Kd4 {[%emt 0:02:08]} Ke6 {[%emt 0:04:38]} 44. a7 {[%emt 0:01:22] normal} g5 {[%emt 0:03:27] normal} 1/2-1/2

[Event "DVM U20 2019"]
[Site "Braunschweig"]
[Date "2019.12.29"]
[Round "5"]
[White "Hoenselaar, Dennis"]
[Black "Grimm, Ling Leander"]
[Result "0-1"]
[ECO "A10"]
[WhiteElo "1769"]
[BlackElo "1777"]
[Annotator "NA"]
[PlyCount "113"]
[EventDate "2019.12.27"]
[EventType "team-tourn"]
[EventRounds "7"]
[EventCountry "GER"]
[SourceTitle "playchess.com"]
[Source "ChessBase"]
[SourceQuality "1"]
[WhiteTeam "SK Turm Kleve"]
[BlackTeam "SK Bebenhausen"]
[TimeControl "40/5400+30:1800+30"]

1. c4 {[%emt 0:00:00]} f5 {[%emt 0:00:00]} 2. Nc3 {[%emt 0:00:13]} Nf6 {[%emt 0:00:00]} 3. g3 {[%emt 0:00:14]} g6 {[%emt 0:00:30]} 4. Bg2 {[%emt 0:00:26]} Bg7 {[%emt 0:00:29]} 5. e3 {[%emt 0:00:43]} O-O {[%emt 0:01:01]} 6. Nge2 {[%emt 0:00:39]} d6 {[%emt 0:00:53]} 7. O-O {[%emt 0:03:34]} e5 {[%emt 0:02:22]} 8. d3 {[%emt 0:00:22]} c6 {[%emt 0:01:24]} 9. f4 {[%emt 0:01:43]} Nbd7 {[%emt 0:01:05]} 10. Rb1 {[%emt 0:04:02]} Re8 {[%emt 0:17:54]} 11. h3 {[%emt 0:07:59]} e4 {[%emt 0:16:55]} 12. d4 {[%emt 0:00:40]} Qe7 {[%emt 0:10:35]} 13. b4 {[%emt 0:02:56]} Qf7 {[%emt 0:01:53]} 14. c5 {[%emt 0:06:46]} dxc5 {[%emt 0:16:34]} 15. bxc5 {[%emt 0:01:26]} Nf8 {[%emt 0:04:39]} 16. Qb3 {[%emt 0:12:17]} Rb8 {[%emt 0:02:32]} 17. Qxf7+ {[%emt 0:02:59]} Kxf7 {[%emt 0:00:02]} 18. Rd1 {[%emt 0:01:15]} Be6 {[%emt 0:00:34]} 19. Bf1 {[%emt 0:02:43]} Bc4 {[%emt 0:03:18]} 20. Rb4 {[%emt 0:01:51]} Bd3 {[%emt 0:01:22]} 21. Bb2 {[%emt 0:03:42]} Ne6 {[%emt 0:00:26]} 22. Nc1 {[%emt 0:02:41]} Bxf1 {[%emt 0:00:21]} 23. Kxf1 {[%emt 0:00:01]} Nc7 {[%emt 0:00:29]} 24. Kf2 {[%emt 0:02:48]} Nfd5 {[%emt 0:00:44]} 25. Nxd5 {[%emt 0:00:20]} Nxd5 {[%emt 0:00:14]} 26. Rc4 {[%emt 0:01:26]} Ke6 {[%emt 0:01:00]} 27. Ne2 {[%emt 0:01:50]} Bf8 {[%emt 0:01:21]} 28. Nc3 {[%emt 0:00:55]} Rec8 {[%emt 0:01:02]} 29. Nxd5 {[%emt 0:00:47]} Kxd5 {[%emt 0:00:24]} 30. Ra4 {[%emt 0:01:35]} Ra8 {[%emt 0:00:54]} 31. Ba3 {[%emt 0:03:40]} Be7 {[%emt 0:01:00]} 32. Rb1 {[%emt 0:00:36]} Rcb8 {[%emt 0:00:31]} 33. Bc1 {[%emt 0:01:57]} Bd8 {[%emt 0:01:59]} 34. Bd2 {[%emt 0:00:39]} Bc7 {[%emt 0:01:44]} 35. h4 {[%emt 0:01:39]} Bd8 {[%emt 0:01:41]} 36. Rab4 {[%emt 0:01:02]} b5 {[%emt 0:01:21]} 37. R4b2 {[%emt 0:02:18]} Rb7 {[%emt 0:03:37]} 38. a4 {[%emt 0:02:10]} a6 {[%emt 0:02:31]} 39. a5 {[%emt 0:00:20]} Rab8 {[%emt 0:00:57]} 40. Bb4 {[%emt 0:00:15]} h6 {[%emt 0:01:08]} 41. Rh1 {[%emt 0:30:49]} Rg7 {[%emt 0:30:30]} 42. Rbb1 {[%emt 0:01:29]} Bc7 {[%emt 0:00:53]} 43. g4 {[%emt 0:02:59]} fxg4 {[%emt 0:01:53]} 44. Rbg1 {[%emt 0:00:51]} Kc4 {[%emt 0:00:00]} 45. Rb1 {[%emt 0:00:00]} Rd8 {[%emt 0:00:00]} 46. Rhc1+ {[%emt 0:00:00]} Kd5 {[%emt 0:00:00]} 47. Rg1 {[%emt 0:00:00]} h5 {[%emt 0:00:00]} 48. Rh1 {[%emt 0:00:00]} Rf7 {[%emt 0:00:00]} 49. Kg3 {[%emt 0:00:00]} Rdf8 {[%emt 0:00:00]} 50. Rhf1 {[%emt 0:00:00]} Rf5 {[%emt 0:00:00]} 51. Rb2 {[%emt 0:00:00]} g5 {[%emt 0:00:00]} 52. hxg5 {[%emt 0:00:00]} Rxg5 {[%emt 0:00:00]} 53. Rh2 {[%emt 0:00:00]} Rgf5 {[%emt 0:00:00]} 54. Rc2 {[%emt 0:00:00]} Rg8 {[%emt 0:00:00]} 55. Be1 {[%emt 0:00:00]} Bd8 {[%emt 0:00:00]} 56. Rh1 {[%emt 0:00:00]} h4+ {[%emt 0:00:00]} 57. Kg2 {[%emt 0:00:00] normal} 0-1

[Event "DVM U20 2019"]
[Site "Braunschweig"]
[Date "2019.12.29"]
[Round "5"]
[White "Grining, Maria"]
[Black "Seref, Erdogan"]
[Result "1-0"]
[ECO "D04"]
[WhiteElo "1744"]
[BlackElo "2003"]
[Annotator "NA"]
[PlyCount "41"]
[EventDate "2019.12.27"]
[EventType "team-tourn"]
[EventRounds "7"]
[EventCountry "GER"]
[SourceTitle "playchess.com"]
[Source "ChessBase"]
[SourceQuality "1"]
[WhiteTeam "Karlsruher SF"]
[BlackTeam "SF Brackel"]
[TimeControl "40/5400+30:1800+30"]

1. d4 {[%emt 0:00:00]} Nf6 {[%emt 0:00:00]} 2. Nf3 {[%emt 0:00:00]} d5 {[%emt 0:00:00]} 3. e3 {[%emt 0:00:00]} c5 {[%emt 0:00:28]} 4. c4 {[%emt 0:00:07] unterminated} Nc6 {[%emt 0:01:28] unterminated} 5. Nc3 {[%emt 0:00:51] unterminated} Bg4 $16 {[%emt 0:05:52]} (5... cxd4 $11 6. exd4 e6) 6. cxd5 {[%emt 0:09:02]} Nxd5 {[%emt 0:00:25]} 7. Bc4 {[%emt 0:00:34]} e6 {[%emt 0:08:38]} 8. O-O {[%emt 0:04:22]} cxd4 {[%emt 0:01:47]} 9. exd4 {[%emt 0:00:58]} Bxf3 {[%emt 0:06:57]} 10. Qxf3 {[%emt 0:01:50]} Nxd4 {[%emt 0:02:36]} 11. Qe4 {[%emt 0:01:52]} Nxc3 {[%emt 0:00:43]} 12. bxc3 {[%emt 0:00:19]} Nc6 {[%emt 0:00:16]} 13. Rb1 {[%emt 0:04:47]} Qc8 {[%emt 0:02:38]} 14. Qg4 {[%emt 0:08:15]} Bd6 {[%emt 0:11:27]} 15. Qxg7 {[%emt 0:03:34]} Be5 {[%emt 0:00:09]} 16. Qg5 {[%emt 0:03:04]} Qc7 {[%emt 0:02:34]} 17. g3 {[%emt 0:15:16]} Bxc3 {[%emt 0:07:28]} 18. Ba3 {[%emt 0:08:39]} Qe5 {[%emt 0:06:54]} 19. Qxe5 {[%emt 0:04:04]} Nxe5 {[%emt 0:02:54]} 20. Bb5+ {[%emt 0:00:32]} Nc6 {[%emt 0:03:21]} 21. Rfc1 {[%emt 0:01:42] normal} 1-0

[Event "DVM U20 2019"]
[Site "Braunschweig"]
[Date "2019.12.29"]
[Round "5"]
[White "Heise, Tobias"]
[Black "Klenk, Sofie"]
[Result "1/2-1/2"]
[ECO "D00"]
[WhiteElo "1712"]
[BlackElo "1812"]
[Annotator "NA"]
[PlyCount "89"]
[EventDate "2019.12.27"]
[EventType "team-tourn"]
[EventRounds "7"]
[EventCountry "GER"]
[SourceTitle "playchess.com"]
[Source "ChessBase"]
[SourceQuality "1"]
[WhiteTeam "SK Lehrte 1919"]
[BlackTeam "SF Augsburg"]
[TimeControl "40/5400+30:1800+30"]

1. d4 {[%emt 0:00:00]} d5 {[%emt 0:00:00]} 2. Bf4 {[%emt 0:00:00]} c5 {[%emt 0:00:00]} 3. e3 {[%emt 0:02:13]} Nf6 {[%emt 0:00:00]} 4. c3 {[%emt 0:10:05]} Nc6 {[%emt 0:00:25]} 5. Bd3 {[%emt 0:00:30]} Qb6 {[%emt 0:00:30]} 6. Qb3 {[%emt 0:00:30]} c4 {[%emt 0:00:30]} 7. Qxb6 {[%emt 0:00:30]} axb6 {[%emt 0:00:30]} 8. Bc2 {[%emt 0:00:30]} e6 {[%emt 0:00:30]} 9. Nd2 {[%emt 0:00:30]} b5 {[%emt 0:00:30]} 10. Ngf3 {[%emt 0:00:30]} b4 11. O-O Be7 {[%emt 0:18:42]} 12. e4 {[%emt 0:09:58]} O-O {[%emt 0:04:35]} 13. e5 {[%emt 0:18:06]} Nd7 {[%emt 0:00:10]} 14. Bg5 {[%emt 0:05:40]} Bxg5 {[%emt 0:06:01]} 15. Nxg5 {[%emt 0:00:07]} h6 {[%emt 0:00:09]} 16. Nh3 {[%emt 0:02:41]} Nb6 {[%emt 0:09:17]} 17. f4 {[%emt 0:20:16]} bxc3 {[%emt 0:02:25]} 18. bxc3 {[%emt 0:00:26]} Na4 {[%emt 0:00:13]} 19. Rf3 {[%emt 0:03:07]} Nb2 {[%emt 0:08:31]} 20. a3 {[%emt 0:03:01]} Ne7 {[%emt 0:09:58]} 21. Rb1 {[%emt 0:03:42]} Na4 {[%emt 0:00:07]} 22. Rb4 {[%emt 0:00:30]} b5 {[%emt 0:06:00]} 23. Rxb5 {[%emt 0:01:03]} Ra7 {[%emt 0:00:15]} 24. Rb4 {[%emt 0:02:06]} Bd7 {[%emt 0:00:06]} 25. g4 {[%emt 0:01:29]} g6 {[%emt 0:00:59]} 26. Nf2 {[%emt 0:01:45]} Rfa8 {[%emt 0:08:39]} 27. h4 {[%emt 0:01:15]} Nc6 {[%emt 0:08:48]} 28. Rb1 {[%emt 0:00:17]} Rb8 {[%emt 0:00:38]} 29. h5 {[%emt 0:01:33]} Rxb1+ {[%emt 0:03:16]} 30. Nxb1 {[%emt 0:00:13]} g5 {[%emt 0:00:42]} 31. Nh3 {[%emt 0:03:22]} gxf4 {[%emt 0:02:00]} 32. Nxf4 {[%emt 0:01:56]} Kg7 {[%emt 0:02:18]} 33. Rg3 {[%emt 0:02:25]} Nb6 {[%emt 0:02:50]} 34. g5 {[%emt 0:01:37]} Ra8 {[%emt 0:00:39]} 35. g6 {[%emt 0:01:18]} Rg8 {[%emt 0:01:28]} 36. gxf7+ {[%emt 0:00:51]} Kxf7 {[%emt 0:00:01]} 37. Bg6+ {[%emt 0:00:01]} Ke7 {[%emt 0:00:53]} 38. Rf3 {[%emt 0:00:27]} Rf8 {[%emt 0:00:48]} 39. Kg2 {[%emt 0:00:35]} Nd8 {[%emt 0:03:13]} 40. Kg3 {[%emt 0:02:58]} Rg8 {[%emt 0:02:29]} 41. Kh4 {[%emt 0:30:39]} Be8 {[%emt 0:01:26]} 42. Rf2 {[%emt 0:00:00]} Na4 {[%emt 0:01:08]} 43. Bc2 {[%emt 0:00:00]} Nb6 {[%emt 0:05:24]} 44. Ng6+ {[%emt 0:00:00]} Kd7 {[%emt 0:01:13]} 45. a4 {[%emt 0:00:00] normal} 1/2-1/2

[Event "DVM U20 2019"]
[Site "Braunschweig"]
[Date "2019.12.29"]
[Round "5"]
[White "Roesler, Hannah Clara"]
[Black "Habersetzer, Elyse"]
[Result "1/2-1/2"]
[ECO "C02"]
[WhiteElo "1695"]
[BlackElo "1650"]
[Annotator "NA"]
[PlyCount "77"]
[EventDate "2019.12.27"]
[EventType "team-tourn"]
[EventRounds "7"]
[EventCountry "GER"]
[SourceTitle "playchess.com"]
[Source "ChessBase"]
[SourceQuality "1"]
[WhiteTeam "SK Bebenhausen"]
[BlackTeam "SK Turm Kleve"]
[TimeControl "40/5400+30:1800+30"]

1. e4 {[%emt 0:00:00]} e6 {[%emt 0:00:00]} 2. d4 {[%emt 0:00:00]} d5 {[%emt 0:00:00]} 3. e5 {[%emt 0:00:08]} c5 {[%emt 0:00:00]} 4. c3 {[%emt 0:00:17]} Nc6 {[%emt 0:00:00]} 5. Nf3 {[%emt 0:00:36]} Qb6 {[%emt 0:00:45]} 6. Bd3 {[%emt 0:01:03]} Bd7 {[%emt 0:00:34]} 7. dxc5 {[%emt 0:00:46]} Bxc5 {[%emt 0:00:17]} 8. O-O {[%emt 0:05:07]} Qc7 {[%emt 0:05:57]} 9. b4 {[%emt 0:02:17]} Bb6 {[%emt 0:02:41]} 10. Qe2 {[%emt 0:03:18]} Nge7 {[%emt 0:06:39]} 11. a4 {[%emt 0:08:08]} Qd8 {[%emt 0:22:44]} 12. Nbd2 a6 {[%emt 0:00:00]} 13. Nb3 {[%emt 0:21:33]} Nf5 {[%emt 0:05:19]} 14. Ba3 {[%emt 0:03:44]} Rc8 {[%emt 0:05:35]} 15. Rad1 {[%emt 0:05:22]} Nce7 {[%emt 0:02:14]} 16. Nc5 {[%emt 0:04:55]} Bxc5 {[%emt 0:05:35]} 17. bxc5 {[%emt 0:00:52]} Bxa4 {[%emt 0:00:33]} 18. Rd2 {[%emt 0:00:52]} Bc6 {[%emt 0:03:14]} 19. Nd4 {[%emt 0:00:58]} Qa5 {[%emt 0:08:51]} 20. Bb4 {[%emt 0:00:53]} Nxd4 {[%emt 0:01:08]} 21. Qg4 {[%emt 0:02:50]} Qd8 {[%emt 0:03:36]} 22. cxd4 {[%emt 0:00:53]} Ng6 {[%emt 0:01:48]} 23. f4 {[%emt 0:02:38]} Qh4 {[%emt 0:04:32]} 24. Qf3 {[%emt 0:01:46]} O-O {[%emt 0:02:41]} 25. g3 {[%emt 0:01:48]} Qd8 {[%emt 0:02:03]} 26. f5 {[%emt 0:02:26]} exf5 {[%emt 0:02:38]} 27. Bxf5 {[%emt 0:01:58]} Rb8 {[%emt 0:00:40]} 28. Qa3 {[%emt 0:04:47]} Qg5 {[%emt 0:02:48]} 29. Rdf2 {[%emt 0:03:22]} Ne7 {[%emt 0:01:00]} 30. h4 {[%emt 0:03:51]} Qh5 {[%emt 0:00:15]} 31. g4 {[%emt 0:01:05]} Qh6 {[%emt 0:00:48]} 32. Bd2 {[%emt 0:01:28]} g5 {[%emt 0:03:46]} 33. Bxg5 {[%emt 0:00:16]} Qg7 {[%emt 0:00:51]} 34. Bxe7 {[%emt 0:00:25]} Rfe8 {[%emt 0:00:22]} 35. Bd6 {[%emt 0:01:41]} Rbd8 {[%emt 0:00:37]} 36. Qe3 {[%emt 0:00:51]} Bd7 {[%emt 0:01:12]} 37. Bc7 {[%emt 0:02:53]} Bxf5 {[%emt 0:00:12]} 38. Bxd8 {[%emt 0:00:13]} Bxg4 {[%emt 0:01:14]} 39. Bf6 {[%emt 0:00:44] normal} 1/2-1/2

[Event "DVM U20 2019"]
[Site "Braunschweig"]
[Date "2019.12.29"]
[Round "5"]
[White "Schubert, Bernhard"]
[Black "Kaiser, Frederic"]
[Result "0-1"]
[ECO "A56"]
[WhiteElo "1586"]
[BlackElo "1901"]
[Annotator "NA"]
[PlyCount "63"]
[EventDate "2019.12.27"]
[EventType "team-tourn"]
[EventRounds "7"]
[EventCountry "GER"]
[SourceTitle "playchess.com"]
[Source "ChessBase"]
[SourceQuality "1"]
[WhiteTeam "USV TU Dresden"]
[BlackTeam "Sges Bensheim"]
[TimeControl "40/5400+30:1800+30"]

1. d4 Nf6 {[%emt 0:00:00]} 2. c4 {[%emt 0:00:00]} c5 {[%emt 0:00:00]} 3. Nf3 {[%emt 0:00:42]} cxd4 {[%emt 0:00:00]} 4. Nxd4 {[%emt 0:00:29]} g6 {[%emt 0:00:15]} 5. Nc3 {[%emt 0:00:42]} Bg7 {[%emt 0:00:34]} 6. e3 {[%emt 0:01:14]} Nc6 {[%emt 0:02:54]} 7. Be2 {[%emt 0:02:37]} d6 {[%emt 0:04:22]} 8. O-O {[%emt 0:00:23]} O-O 9. b3 {[%emt 0:01:18]} a6 {[%emt 0:15:25]} 10. Bb2 {[%emt 0:02:20]} Bd7 {[%emt 0:01:33]} 11. Bf3 {[%emt 0:09:17]} Rb8 {[%emt 0:02:51]} 12. Ne4 {[%emt 0:03:31]} Ne5 {[%emt 0:02:23]} 13. Nxf6+ {[%emt 0:02:30]} Bxf6 {[%emt 0:00:21]} 14. Rb1 {[%emt 0:01:48]} Qc7 {[%emt 0:05:43]} 15. Be2 {[%emt 0:04:09]} Bc6 {[%emt 0:10:45]} 16. Nxc6 {[%emt 0:01:49]} bxc6 {[%emt 0:00:50]} 17. Qd2 {[%emt 0:07:43]} a5 {[%emt 0:04:15]} 18. Rfc1 {[%emt 0:07:14]} c5 {[%emt 0:03:18]} 19. f4 {[%emt 0:04:17]} Nd7 {[%emt 0:01:00]} 20. Bg4 {[%emt 0:00:58]} Bxb2 {[%emt 0:05:21]} 21. Rxb2 {[%emt 0:01:28]} Ra8 {[%emt 0:02:19]} 22. e4 {[%emt 0:07:39]} Nb8 {[%emt 0:01:14]} 23. f5 {[%emt 0:02:57]} Nc6 {[%emt 0:08:24]} 24. fxg6 {[%emt 0:00:53]} fxg6 {[%emt 0:00:02]} 25. Be6+ {[%emt 0:01:19]} Kg7 {[%emt 0:00:36]} 26. Bd5 {[%emt 0:01:53]} Ra7 {[%emt 0:00:50]} 27. Rc3 {[%emt 0:02:53]} Nd4 {[%emt 0:01:36]} 28. e5 {[%emt 0:06:43]} dxe5 {[%emt 0:01:11]} 29. Rh3 {[%emt 0:01:46]} e6 {[%emt 0:00:53] normal} 30. Qh6+ {[%emt 0:01:15]} Kg8 {[%emt 0:00:07] normal} 31. Be4 {[%emt 0:03:02]} Qf7 {[%emt 0:01:00] normal} 32. Bd3 {[%emt 0:02:11] normal} 0-1